fUST/lending_fUST_20260509
["ID","MTS","AMOUNT","RATE_DAILY","PERIOD"]
[421907033,1778321452000,-500.0,0.00012328,2]
[421907040,1778321452000,-500.0,0.00012328,2]
[421907037,1778321452000,-9844.3,0.00012328,2]
[421907036,1778321452000,-896.78,0.00012328,2]
[421907039,1778321452000,-1880.07,0.00012328,2]
[421907038,1778321452000,-1112.66,0.00012328,2]
[421906992,1778321452000,-7953.86863966,0.00012274,2]
[421907031,1778321452000,-1852.28,0.00012328,2]
[421907015,1778321452000,-500.0,0.00012328,2]
[421907024,1778321452000,-887.55,0.00012328,2]
[421907013,1778321452000,-500.0,0.00012328,2]
[421907012,1778321452000,-826.97,0.00012328,2]
[421906991,1778321452000,-171.91,0.00012074,2]
[421906990,1778321452000,-151.0,0.00012067,2]
[421906989,1778321452000,-151.0,0.00012067,2]
[421906996,1778321452000,-500.0,0.00012328,2]
[421906994,1778321452000,-168.3888056,0.0001232,2]
[421906997,1778321452000,-500.0,0.00012328,2]
[421906999,1778321452000,-500.0,0.00012328,2]
[421907004,1778321452000,-500.0,0.00012328,2]
[421907011,1778321452000,-500.0,0.00012328,2]
[421907002,1778321452000,-500.0,0.00012328,2]
[421906995,1778321452000,-1305.7807,0.00012328,2]
[421907016,1778321452000,-813.64,0.00012328,2]
[421907000,1778321452000,-841.78,0.00012328,2]
[421907006,1778321452000,-500.0,0.00012328,2]
[421907001,1778321452000,-500.0,0.00012328,2]
[421907003,1778321452000,-706.15,0.00012328,2]
[421907008,1778321452000,-500.0,0.00012328,2]
[421907007,1778321452000,-500.0,0.00012328,2]
[421907005,1778321452000,-500.0,0.00012328,2]
[421907009,1778321452000,-500.0,0.00012328,2]
[421907023,1778321452000,-500.0,0.00012328,2]
[421907010,1778321452000,-855.46,0.00012328,2]
[421907086,1778321453000,-500.0,0.00012602,2]
[421907076,1778321453000,-500.0,0.00012602,2]
[421907078,1778321453000,-500.0,0.00012602,2]
[421907075,1778321453000,-500.0,0.00012602,2]
[421907077,1778321453000,-855.46,0.00012602,2]
[421907072,1778321453000,-479.89,0.00012602,2]
[421907069,1778321453000,-500.0,0.00012602,2]
[421907071,1778321453000,-381.6,0.00012602,2]
[421907068,1778321453000,-500.0,0.00012602,2]
[421907085,1778321453000,-500.0,0.00012602,2]
[421907074,1778321453000,-500.0,0.00012602,2]
[421907080,1778321453000,-500.0,0.00012602,2]
[421907093,1778321453000,-516.77,0.00012602,2]
[421907082,1778321453000,-500.0,0.00012602,2]
[421907083,1778321453000,-813.64,0.00012602,2]
[421907079,1778321453000,-826.97,0.00012602,2]
[421907084,1778321453000,-1694.75,0.00012602,2]
[421907087,1778321453000,-500.0,0.00012602,2]
[421907089,1778321453000,-821.1,0.00012602,2]
[421907090,1778321453000,-500.0,0.00012602,2]
[421907091,1778321453000,-887.55,0.00012602,2]
[421907094,1778321453000,-1402.48,0.00012602,2]
[421907095,1778321453000,-500.0,0.00012602,2]
[421907067,1778321453000,-841.78,0.00012602,2]
[421907081,1778321453000,-500.0,0.00012602,2]
[421907064,1778321453000,-500.0,0.00012602,2]
[421907042,1778321453000,-500.0,0.00012328,2]
[421907070,1778321453000,-706.15,0.00012602,2]
[421907041,1778321453000,-723.05,0.00012328,2]
[421907046,1778321453000,-500.0,0.00012328,2]
[421907088,1778321453000,-500.0,0.00012602,2]
[421907043,1778321453000,-500.0,0.00012328,2]
[421907047,1778321453000,-500.0,0.00012328,2]
[421907044,1778321453000,-500.0,0.00012328,2]
[421907045,1778321453000,-500.0,0.00012328,2]
[421907048,1778321453000,-683.02,0.00012328,2]
[421907060,1778321453000,-500.0,0.00012586,2]
[421907050,1778321453000,-500.0,0.00012328,2]
[421907061,1778321453000,-599.60298507,0.00012595,2]
[421907049,1778321453000,-600.75,0.00012328,2]
[421907057,1778321453000,-545.61,0.00012328,2]
[421907051,1778321453000,-1241.37,0.00012328,2]
[421907056,1778321453000,-1408.46,0.00012328,2]
[421907054,1778321453000,-743.93,0.00012328,2]
[421907052,1778321453000,-1055.72,0.00012328,2]
[421907059,1778321453000,-305.44248246,0.00012393,2]
[421907053,1778321453000,-500.0,0.00012328,2]
[421907055,1778321453000,-500.0,0.00012328,2]
[421907058,1778321453000,-500.0,0.00012328,2]
[421907063,1778321453000,-500.0,0.00012602,2]
[421907073,1778321453000,-500.0,0.00012602,2]
[421907065,1778321453000,-500.0,0.00012602,2]
[421907062,1778321453000,-1305.7807,0.00012602,2]
[421907066,1778321453000,-500.0,0.00012602,2]
[421907097,1778321453000,-500.0,0.00012602,2]
[421907092,1778321453000,-500.0,0.00012602,2]
[421907096,1778321453000,-500.0,0.00012602,2]
[421907124,1778321453000,-545.61,0.00012602,2]
[421907129,1778321453000,-503.44035319,0.00012844,2]
[421907140,1778321453000,-500.0,0.00012876,2]
[421907130,1778321453000,-1305.7807,0.00012876,2]
[421907132,1778321453000,-500.0,0.00012876,2]
[421907131,1778321453000,-500.0,0.00012876,2]
[421907136,1778321453000,-500.0,0.00012876,2]
[421907135,1778321453000,-841.78,0.00012876,2]
[421907133,1778321453000,-500.0,0.00012876,2]
[421907134,1778321453000,-500.0,0.00012876,2]
[421907139,1778321453000,-500.0,0.00012876,2]
[421907138,1778321453000,-706.15,0.00012876,2]
[421907152,1778321453000,-500.0,0.00012876,2]
[421907142,1778321453000,-500.0,0.00012876,2]
[421907141,1778321453000,-500.0,0.00012876,2]
[421907145,1778321453000,-826.97,0.00012876,2]
[421907144,1778321453000,-500.0,0.00012876,2]
[421907149,1778321453000,-813.64,0.00012876,2]
[421907146,1778321453000,-500.0,0.00012876,2]
[421907143,1778321453000,-855.46,0.00012876,2]
[421907150,1778321453000,-1694.75,0.00012876,2]
[421907151,1778321453000,-500.0,0.00012876,2]
[421907148,1778321453000,-500.0,0.00012876,2]
[421907099,1778321453000,-1139.58,0.00012602,2]
[421907147,1778321453000,-500.0,0.00012876,2]
[421907125,1778321453000,-500.0,0.00012602,2]
[421907123,1778321453000,-1408.46,0.00012602,2]
[421907137,1778321453000,-500.0,0.00012876,2]
[421907119,1778321453000,-1055.72,0.00012602,2]
[421907098,1778321453000,-1852.28,0.00012602,2]
[421907127,1778321453000,-151.0,0.000127,2]
[421907103,1778321453000,-896.78,0.00012602,2]
[421907105,1778321453000,-1112.66,0.00012602,2]
[421907101,1778321453000,-500.0,0.00012602,2]
[421907102,1778321453000,-500.0,0.00012602,2]
[421907104,1778321453000,-9844.3,0.00012602,2]
[421907107,1778321453000,-500.0,0.00012602,2]
[421907110,1778321453000,-500.0,0.00012602,2]
[421907106,1778321453000,-1880.07,0.00012602,2]
[421907113,1778321453000,-500.0,0.00012602,2]
[421907108,1778321453000,-723.05,0.00012602,2]
[421907116,1778321453000,-600.75,0.00012602,2]
[421907100,1778321453000,-500.0,0.00012602,2]
[421907121,1778321453000,-743.93,0.00012602,2]
[421907109,1778321453000,-500.0,0.00012602,2]
[421907128,1778321453000,-795.0,0.000128,2]
[421907122,1778321453000,-500.0,0.00012602,2]
[421907126,1778321453000,-8449.62575293,0.00012653,2]
[421907117,1778321453000,-500.0,0.00012602,2]
[421907120,1778321453000,-500.0,0.00012602,2]
[421907114,1778321453000,-500.0,0.00012602,2]
[421907115,1778321453000,-683.02,0.00012602,2]
[421907111,1778321453000,-500.0,0.00012602,2]
[421907112,1778321453000,-500.0,0.00012602,2]
[421907118,1778321453000,-1241.37,0.00012602,2]
[421907190,1778321454000,-545.61,0.00012876,2]
[421907191,1778321454000,-500.0,0.00012876,2]
[421907193,1778321454000,-151.0,0.00012932,2]
[421907189,1778321454000,-1408.46,0.00012876,2]
[421907188,1778321454000,-500.0,0.00012876,2]
[421907181,1778321454000,-683.02,0.00012876,2]
[421907186,1778321454000,-500.0,0.00012876,2]
[421907185,1778321454000,-1055.72,0.00012876,2]
[421907194,1778321454000,-151.0,0.00012932,2]
[421907184,1778321454000,-1241.37,0.00012876,2]
[421907182,1778321454000,-600.75,0.00012876,2]
[421907187,1778321454000,-743.93,0.00012876,2]
[421907192,1778321454000,-151.0,0.000129,2]
[421907199,1778321454000,-1412.0,0.00013136,2]
[421907203,1778321454000,-500.0,0.0001315,2]
[421907200,1778321454000,-455.87168844,0.00013143,2]
[421907198,1778321454000,-647.0,0.00013136,2]
[421907197,1778321454000,-9172.9313395,0.00013032,2]
[421907195,1778321454000,-100559.93603106,0.00013,2]
[421907196,1778321454000,-167.0,0.00013029,2]
[421907201,1778321454000,-155.0,0.00013148,2]
[421907204,1778321454000,-500.0,0.0001315,2]
[421907206,1778321454000,-500.0,0.0001315,2]
[421907205,1778321454000,-500.0,0.0001315,2]
[421907211,1778321454000,-500.0,0.0001315,2]
[421907210,1778321454000,-706.15,0.0001315,2]
[421907202,1778321454000,-1305.7807,0.0001315,2]
[421907183,1778321454000,-500.0,0.00012876,2]
[421907154,1778321454000,-500.0,0.00012876,2]
[421907179,1778321454000,-500.0,0.00012876,2]
[421907208,1778321454000,-404.07900028,0.0001315,2]
[421907153,1778321454000,-500.0,0.00012876,2]
[421907160,1778321454000,-1402.48,0.00012876,2]
[421907156,1778321454000,-500.0,0.00012876,2]
[421907161,1778321454000,-500.0,0.00012876,2]
[421907163,1778321454000,-500.0,0.00012876,2]
[421907164,1778321454000,-1852.28,0.00012876,2]
[421907165,1778321454000,-1139.58,0.00012876,2]
[421907158,1778321454000,-500.0,0.00012876,2]
[421907155,1778321454000,-821.1,0.00012876,2]
[421907159,1778321454000,-516.77,0.00012876,2]
[421907162,1778321454000,-500.0,0.00012876,2]
[421907180,1778321454000,-500.0,0.00012876,2]
[421907157,1778321454000,-887.55,0.00012876,2]
[421907178,1778321454000,-500.0,0.00012876,2]
[421907177,1778321454000,-500.0,0.00012876,2]
[421907166,1778321454000,-500.0,0.00012876,2]
[421907174,1778321454000,-723.05,0.00012876,2]
[421907172,1778321454000,-1880.07,0.00012876,2]
[421907168,1778321454000,-500.0,0.00012876,2]
[421907169,1778321454000,-896.78,0.00012876,2]
[421907175,1778321454000,-500.0,0.00012876,2]
[421907171,1778321454000,-1112.66,0.00012876,2]
[421907170,1778321454000,-9844.3,0.00012876,2]
[421907176,1778321454000,-500.0,0.00012876,2]
[421907173,1778321454000,-500.0,0.00012876,2]
[421907167,1778321454000,-500.0,0.00012876,2]
[421907207,1778321454000,-841.78,0.0001315,2]
[421907268,1778321454000,-9318.06760974,0.00013411,2]
[421907215,1778321454000,-855.46,0.0001315,2]
[421907243,1778321454000,-1112.66,0.0001315,2]
[421907253,1778321454000,-683.02,0.0001315,2]
[421907242,1778321454000,-9844.3,0.0001315,2]
[421907244,1778321454000,-1880.07,0.0001315,2]
[421907245,1778321454000,-500.0,0.0001315,2]
[421907249,1778321454000,-500.0,0.0001315,2]
[421907252,1778321454000,-546.84,0.0001315,2]
[421907247,1778321454000,-500.0,0.0001315,2]
[421907246,1778321454000,-723.05,0.0001315,2]
[421907251,1778321454000,-500.0,0.0001315,2]
[421907248,1778321454000,-500.0,0.0001315,2]
[421907250,1778321454000,-500.0,0.0001315,2]
[421907254,1778321454000,-600.75,0.0001315,2]
[421907256,1778321454000,-1241.37,0.0001315,2]
[421907255,1778321454000,-500.0,0.0001315,2]
[421907258,1778321454000,-500.0,0.0001315,2]
[421907261,1778321454000,-1408.46,0.0001315,2]
[421907262,1778321454000,-545.61,0.0001315,2]
[421907259,1778321454000,-743.93,0.0001315,2]
[421907260,1778321454000,-500.0,0.0001315,2]
[421907264,1778321454000,-2201.0,0.00013157,2]
[421907209,1778321454000,-500.0,0.0001315,2]
[421907266,1778321454000,-442.0,0.00013232,2]
[421907263,1778321454000,-500.0,0.0001315,2]
[421907267,1778321454000,-231.56,0.00013372,2]
[421907269,1778321454000,-1305.7807,0.00013424,2]
[421907257,1778321454000,-1055.72,0.0001315,2]
[421907239,1778321454000,-500.0,0.0001315,2]
[421907265,1778321454000,-151.0,0.000132,2]
[421907236,1778321454000,-1852.28,0.0001315,2]
[421907237,1778321454000,-1139.58,0.0001315,2]
[421907213,1778321454000,-500.0,0.0001315,2]
[421907214,1778321454000,-500.0,0.0001315,2]
[421907216,1778321454000,-500.0,0.0001315,2]
[421907228,1778321454000,-500.0,0.0001315,2]
[421907223,1778321454000,-500.0,0.0001315,2]
[421907219,1778321454000,-500.0,0.0001315,2]
[421907217,1778321454000,-826.97,0.0001315,2]
[421907220,1778321454000,-500.0,0.0001315,2]
[421907225,1778321454000,-500.0,0.0001315,2]
[421907221,1778321454000,-813.64,0.0001315,2]
[421907226,1778321454000,-500.0,0.0001315,2]
[421907227,1778321454000,-821.1,0.0001315,2]
[421907212,1778321454000,-500.0,0.0001315,2]
[421907222,1778321454000,-1694.75,0.0001315,2]
[421907218,1778321454000,-500.0,0.0001315,2]
[421907233,1778321454000,-500.0,0.0001315,2]
[421907238,1778321454000,-580.98820057,0.0001315,2]
[421907232,1778321454000,-1402.48,0.0001315,2]
[421907229,1778321454000,-887.55,0.0001315,2]
[421907235,1778321454000,-500.0,0.0001315,2]
[421907240,1778321454000,-500.0,0.0001315,2]
[421907241,1778321454000,-896.78,0.0001315,2]
[421907230,1778321454000,-500.0,0.0001315,2]
[421907224,1778321454000,-500.0,0.0001315,2]
[421907231,1778321454000,-516.77,0.0001315,2]
[421907234,1778321454000,-500.0,0.0001315,2]
[421907294,1778321455000,-500.0,0.00013424,2]
[421907308,1778321455000,-1880.07,0.00013424,2]
[421907298,1778321455000,-1402.48,0.00013424,2]
[421907297,1778321455000,-516.77,0.00013424,2]
[421907296,1778321455000,-500.0,0.00013424,2]
[421907300,1778321455000,-500.0,0.00013424,2]
[421907301,1778321455000,-500.0,0.00013424,2]
[421907306,1778321455000,-9844.3,0.00013424,2]
[421907303,1778321455000,-1139.58,0.00013424,2]
[421907305,1778321455000,-896.78,0.00013424,2]
[421907314,1778321455000,-500.0,0.00013424,2]
[421907304,1778321455000,-500.0,0.00013424,2]
[421907307,1778321455000,-1112.66,0.00013424,2]
[421907310,1778321455000,-723.05,0.00013424,2]
[421907309,1778321455000,-500.0,0.00013424,2]
[421907317,1778321455000,-500.0,0.00013424,2]
[421907315,1778321455000,-683.02,0.00013424,2]
[421907313,1778321455000,-500.0,0.00013424,2]
[421907316,1778321455000,-600.75,0.00013424,2]
[421907312,1778321455000,-500.0,0.00013424,2]
[421907295,1778321455000,-887.55,0.00013424,2]
[421907302,1778321455000,-1852.28,0.00013424,2]
[421907299,1778321455000,-500.0,0.00013424,2]
[421907279,1778321455000,-269.67,0.00013424,2]
[421907292,1778321455000,-500.0,0.00013424,2]
[421907318,1778321455000,-1241.37,0.00013424,2]
[421907270,1778321455000,-500.0,0.00013424,2]
[421907273,1778321455000,-500.0,0.00013424,2]
[421907272,1778321455000,-500.0,0.00013424,2]
[421907271,1778321455000,-500.0,0.00013424,2]
[421907275,1778321455000,-500.0,0.00013424,2]
[421907274,1778321455000,-841.78,0.00013424,2]
[421907277,1778321455000,-500.0,0.00013424,2]
[421907278,1778321455000,-500.0,0.00013424,2]
[421907276,1778321455000,-706.15,0.00013424,2]
[421907280,1778321455000,-500.0,0.00013424,2]
[421907281,1778321455000,-855.46,0.00013424,2]
[421907285,1778321455000,-500.0,0.00013424,2]
[421907286,1778321455000,-500.0,0.00013424,2]
[421907283,1778321455000,-826.97,0.00013424,2]
[421907282,1778321455000,-500.0,0.00013424,2]
[421907284,1778321455000,-500.0,0.00013424,2]
[421907289,1778321455000,-500.0,0.00013424,2]
[421907288,1778321455000,-1694.75,0.00013424,2]
[421907287,1778321455000,-813.64,0.00013424,2]
[421907290,1778321455000,-500.0,0.00013424,2]
[421907291,1778321455000,-500.0,0.00013424,2]
[421907311,1778321455000,-500.0,0.00013424,2]
[421907293,1778321455000,-821.1,0.00013424,2]
[421907319,1778321455000,-1055.72,0.00013424,2]
[421907347,1778321455000,-1305.7807,0.00013698,2]
[421907346,1778321455000,-1252.2197,0.00013693,2]
[421907350,1778321455000,-500.0,0.00013698,2]
[421907348,1778321455000,-500.0,0.00013698,2]
[421907349,1778321455000,-500.0,0.00013698,2]
[421907359,1778321455000,-1000.0,0.00013698,2]
[421907351,1778321455000,-500.0,0.00013698,2]
[421907354,1778321455000,-706.15,0.00013698,2]
[421907352,1778321455000,-841.78,0.00013698,2]
[421907357,1778321455000,-1000.0,0.00013698,2]
[421907353,1778321455000,-500.0,0.00013698,2]
[421907358,1778321455000,-1000.0,0.00013698,2]
[421907356,1778321455000,-1000.0,0.00013698,2]
[421907361,1778321455000,-1001.53303547,0.00013698,2]
[421907360,1778321455000,-1000.0,0.00013698,2]
[421907362,1778321455000,-500.0,0.00013698,2]
[421907364,1778321455000,-500.0,0.00013698,2]
[421907366,1778321455000,-855.46,0.00013698,2]
[421907365,1778321455000,-500.0,0.00013698,2]
[421907363,1778321455000,-500.0,0.00013698,2]
[421907320,1778321455000,-500.0,0.00013424,2]
[421907343,1778321455000,-202.031012,0.00013693,2]
[421907341,1778321455000,-1626.69549696,0.00013671,2]
[421907355,1778321455000,-500.0,0.00013698,2]
[421907342,1778321455000,-174.61919141,0.00013689,2]
[421907345,1778321455000,-706.10985,0.00013693,2]
[421907322,1778321455000,-500.0,0.00013424,2]
[421907328,1778321455000,-4611.283296,0.00013424,2]
[421907324,1778321455000,-545.61,0.00013424,2]
[421907321,1778321455000,-743.93,0.00013424,2]
[421907326,1778321455000,-160.0,0.00013424,2]
[421907323,1778321455000,-1408.46,0.00013424,2]
[421907327,1778321455000,-2385.641648,0.00013424,2]
[421907330,1778321455000,-3511.107595,0.00013424,2]
[421907338,1778321455000,-500.0,0.00013589,2]
[421907329,1778321455000,-160.0,0.00013424,2]
[421907325,1778321455000,-570.91,0.00013424,2]
[421907340,1778321455000,-9999.99,0.00013671,2]
[421907332,1778321455000,-160.0,0.00013424,2]
[421907333,1778321455000,-275.007026,0.00013424,2]
[421907335,1778321455000,-864.0,0.00013523,2]
[421907336,1778321455000,-150.061,0.0001354,2]
[421907334,1778321455000,-390.014052,0.00013424,2]
[421907337,1778321455000,-500.14818489,0.00013589,2]
[421907367,1778321455000,-500.0,0.00013698,2]
[421907339,1778321455000,-150.094,0.00013636,2]
[421907344,1778321455000,-160.0,0.00013693,2]
[421907331,1778321455000,-6862.215191,0.00013424,2]
[421907405,1778321456000,-821.1,0.00013698,2]
[421907400,1778321456000,-1694.75,0.00013698,2]
[421907402,1778321456000,-500.0,0.00013698,2]
[421907411,1778321456000,-500.0,0.00013698,2]
[421907406,1778321456000,-500.0,0.00013698,2]
[421907403,1778321456000,-500.0,0.00013698,2]
[421907409,1778321456000,-500.0,0.00013698,2]
[421907407,1778321456000,-500.0,0.00013698,2]
[421907401,1778321456000,-500.0,0.00013698,2]
[421907399,1778321456000,-813.64,0.00013698,2]
[421907410,1778321456000,-500.0,0.00013698,2]
[421907404,1778321456000,-500.0,0.00013698,2]
[421907414,1778321456000,-500.0,0.00013698,2]
[421907425,1778321456000,-500.0,0.00013698,2]
[421907420,1778321456000,-500.0,0.00013698,2]
[421907415,1778321456000,-500.0,0.00013698,2]
[421907413,1778321456000,-500.0,0.00013698,2]
[421907418,1778321456000,-500.0,0.00013698,2]
[421907412,1778321456000,-500.0,0.00013698,2]
[421907419,1778321456000,-500.0,0.00013698,2]
[421907417,1778321456000,-500.0,0.00013698,2]
[421907422,1778321456000,-500.0,0.00013698,2]
[421907424,1778321456000,-500.0,0.00013698,2]
[421907423,1778321456000,-500.0,0.00013698,2]
[421907427,1778321456000,-500.0,0.00013698,2]
[421907430,1778321456000,-887.55,0.00013698,2]
[421907397,1778321456000,-500.0,0.00013698,2]
[421907416,1778321456000,-500.0,0.00013698,2]
[421907408,1778321456000,-500.0,0.00013698,2]
[421907380,1778321456000,-500.0,0.00013698,2]
[421907393,1778321456000,-500.0,0.00013698,2]
[421907371,1778321456000,-500.0,0.00013698,2]
[421907369,1778321456000,-500.0,0.00013698,2]
[421907368,1778321456000,-500.0,0.00013698,2]
[421907370,1778321456000,-500.0,0.00013698,2]
[421907373,1778321456000,-500.0,0.00013698,2]
[421907428,1778321456000,-500.0,0.00013698,2]
[421907372,1778321456000,-500.0,0.00013698,2]
[421907374,1778321456000,-332.23639842,0.00013698,2]
[421907375,1778321456000,-500.0,0.00013698,2]
[421907376,1778321456000,-500.0,0.00013698,2]
[421907381,1778321456000,-500.0,0.00013698,2]
[421907382,1778321456000,-500.0,0.00013698,2]
[421907383,1778321456000,-500.0,0.00013698,2]
[421907398,1778321456000,-519.15413834,0.00013698,2]
[421907377,1778321456000,-504.00734786,0.00013698,2]
[421907378,1778321456000,-500.0,0.00013698,2]
[421907395,1778321456000,-500.0,0.00013698,2]
[421907385,1778321456000,-500.0,0.00013698,2]
[421907396,1778321456000,-500.0,0.00013698,2]
[421907384,1778321456000,-500.0,0.00013698,2]
[421907386,1778321456000,-500.0,0.00013698,2]
[421907394,1778321456000,-526.44979508,0.00013698,2]
[421907392,1778321456000,-500.0,0.00013698,2]
[421907389,1778321456000,-500.0,0.00013698,2]
[421907391,1778321456000,-500.0,0.00013698,2]
[421907390,1778321456000,-826.97,0.00013698,2]
[421907387,1778321456000,-500.0,0.00013698,2]
[421907388,1778321456000,-500.0,0.00013698,2]
[421907379,1778321456000,-500.0,0.00013698,2]
[421907426,1778321456000,-500.0,0.00013698,2]
[421907421,1778321456000,-500.0,0.00013698,2]
[421907432,1778321456000,-500.0,0.00013698,2]
[421907468,1778321456000,-500.0,0.00013698,2]
[421907469,1778321456000,-2543.96,0.00013698,2]
[421907465,1778321456000,-500.0,0.00013698,2]
[421907464,1778321456000,-500.0,0.00013698,2]
[421907463,1778321456000,-500.0,0.00013698,2]
[421907470,1778321456000,-2543.96,0.00013698,2]
[421907460,1778321456000,-500.0,0.00013698,2]
[421907472,1778321456000,-2543.96,0.00013698,2]
[421907471,1778321456000,-2543.96,0.00013698,2]
[421907473,1778321456000,-2543.96,0.00013698,2]
[421907474,1778321456000,-2543.96,0.00013698,2]
[421907475,1778321456000,-2543.96,0.00013698,2]
[421907485,1778321456000,-2543.96,0.00013698,2]
[421907484,1778321456000,-2543.96,0.00013698,2]
[421907477,1778321456000,-2543.96,0.00013698,2]
[421907482,1778321456000,-2543.96,0.00013698,2]
[421907480,1778321456000,-2543.96,0.00013698,2]
[421907483,1778321456000,-2543.96,0.00013698,2]
[421907478,1778321456000,-2543.96,0.00013698,2]
[421907479,1778321456000,-2543.96,0.00013698,2]
[421907481,1778321456000,-2543.96,0.00013698,2]
[421907486,1778321456000,-2543.96,0.00013698,2]
[421907487,1778321456000,-2543.96,0.00013698,2]
[421907489,1778321456000,-2543.96,0.00013698,2]
[421907490,1778321456000,-2543.96,0.00013698,2]
[421907492,1778321456000,-2544.06339088,0.00013698,2]
[421907491,1778321456000,-2543.96,0.00013698,2]
[421907488,1778321456000,-2543.96,0.00013698,2]
[421907433,1778321456000,-634.79520249,0.00013698,2]
[421907466,1778321456000,-588.32563005,0.00013698,2]
[421907467,1778321456000,-1880.07,0.00013698,2]
[421907476,1778321456000,-2543.96,0.00013698,2]
[421907461,1778321456000,-500.0,0.00013698,2]
[421907462,1778321456000,-500.0,0.00013698,2]
[421907429,1778321456000,-511.3,0.00013698,2]
[421907435,1778321456000,-516.77,0.00013698,2]
[421907445,1778321456000,-500.0,0.00013698,2]
[421907446,1778321456000,-500.0,0.00013698,2]
[421907434,1778321456000,-500.0,0.00013698,2]
[421907437,1778321456000,-500.0,0.00013698,2]
[421907436,1778321456000,-1402.48,0.00013698,2]
[421907438,1778321456000,-500.0,0.00013698,2]
[421907444,1778321456000,-9844.3,0.00013698,2]
[421907439,1778321456000,-500.0,0.00013698,2]
[421907441,1778321456000,-1139.58,0.00013698,2]
[421907440,1778321456000,-1852.28,0.00013698,2]
[421907442,1778321456000,-500.0,0.00013698,2]
[421907431,1778321456000,-500.0,0.00013698,2]
[421907447,1778321456000,-500.0,0.00013698,2]
[421907443,1778321456000,-896.78,0.00013698,2]
[421907459,1778321456000,-500.0,0.00013698,2]
[421907453,1778321456000,-500.0,0.00013698,2]
[421907452,1778321456000,-500.0,0.00013698,2]
[421907454,1778321456000,-500.0,0.00013698,2]
[421907456,1778321456000,-500.0,0.00013698,2]
[421907458,1778321456000,-500.0,0.00013698,2]
[421907457,1778321456000,-500.0,0.00013698,2]
[421907455,1778321456000,-1112.66,0.00013698,2]
[421907448,1778321456000,-500.0,0.00013698,2]
[421907449,1778321456000,-500.0,0.00013698,2]
[421907451,1778321456000,-500.0,0.00013698,2]
[421907450,1778321456000,-500.0,0.00013698,2]
[421907538,1778321457000,-500.0,0.00013972,2]
[421907533,1778321457000,-500.0,0.00013972,2]
[421907529,1778321457000,-1305.7807,0.00013972,2]
[421907528,1778321457000,-500.0,0.00013917,2]
[421907532,1778321457000,-530.64,0.00013972,2]
[421907534,1778321457000,-841.78,0.00013972,2]
[421907535,1778321457000,-500.0,0.00013972,2]
[421907537,1778321457000,-500.0,0.00013972,2]
[421907530,1778321457000,-500.0,0.00013972,2]
[421907536,1778321457000,-706.15,0.00013972,2]
[421907527,1778321457000,-500.0,0.00013917,2]
[421907540,1778321457000,-855.46,0.00013972,2]
[421907531,1778321457000,-500.0,0.00013972,2]
[421907544,1778321457000,-500.0,0.00013972,2]